bitfinex-derivatives/quotes_ETHF0:USTF0_20250102
["timestamp","ask_amount","ask_price","bid_price","bid_amount"]
[1735826604502,0.2896,3456.7,3456.3,4.816016]
[1735826605105,3.2078,3456.4,3456.3,4.526396]
[1735826605302,3.49742,3456.4,3456.3,4.526396]
[1735826605799,0.28965,3456.1,3455.7,0.28967]
[1735826606004,3.2078,3456.4,3455.6,3.2078]
[1735826606299,3.2078,3455.8,3455.1,3.2078]
[1735826606504,0.28968,3455.6,3455.2,0.28972]
[1735826606707,3.2078,3455.8,3455.1,3.2078]
[1735826607012,0.28969,3455.6,3455.1,3.49752]
[1735826607497,0.28969,3455.6,3455.2,0.28972]
[1735826607900,0.2897,3455.5,3455.1,3.49752]
[1735826608100,0.2897,3455.5,3453.9,0.72456]
[1735826608101,3.2078,3455.2,3454.3,6.10821995]
[1735826608299,0.28974,3455.0,3454.4,0.28978]
[1735826608508,3.2078,3455.8,3455.3,0.2897]
[1735826608705,0.28966,3456.0,3455.4,0.28969]
[1735826608899,3.2078,3456.2,3455.2,1.266]
[1735826609103,3.2078,3456.2,3455.6,0.28968]
[1735826609298,5.66641995,3456.9,3455.9,0.28966]
[1735826609502,0.28959,3456.7,3455.8,3.2078]
[1735826609811,0.28959,3456.8,3456.3,0.28962]
[1735826610300,0.2896,3456.6,3456.2,3.2078]
[1735826610498,0.2896,3456.7,3456.2,3.49743]
[1735826610702,3.2078,3456.9,3456.2,3.2078]
[1735826610909,3.49738,3456.9,3456.4,0.28961]
[1735826611105,3.2078,3456.9,3456.2,3.2078]
[1735826611306,3.49738,3456.9,3456.5,0.28961]
[1735826611610,3.2078,3456.9,3456.2,3.2078]
[1735826611910,3.2078,3456.9,3456.5,0.28961]
[1735826612098,3.2078,3456.9,3456.6,0.2896]
[1735826612304,3.2078,3456.9,3456.5,0.28961]
[1735826612602,5.66641995,3456.9,3456.2,3.2078]
[1735826612806,0.28963,3456.3,3456.2,3.2078]
[1735826614111,0.28967,3455.8,3455.7,3.2078]
[1735826614303,5.66641995,3456.5,3455.7,3.2078]
[1735826614498,5.66641995,3456.5,3455.7,3.49747]
[1735826614807,5.66641995,3456.5,3455.7,3.2078]
[1735826615003,10.66641995,3456.5,3455.7,3.2078]
[1735826615203,0.28967,3455.8,3455.7,3.2078]
[1735826615402,0.28974,3455.0,3454.8,3.2078]
[1735826615613,0.28974,3454.9,3454.8,3.2078]
[1735826616106,2.45861995,3455.0,3454.2,0.4213]
[1735826616307,0.28979,3454.4,3454.2,0.4213]
[1735826616509,0.28978,3454.5,3454.2,0.4213]
[1735826616698,2.45861995,3454.6,3454.1,3.2078]
[1735826616904,8.2078,3454.9,3454.1,3.2078]
[1735826616905,3.2078,3454.9,3454.1,3.2078]
[1735826617104,0.28977,3454.7,3454.3,0.28979]
[1735826617307,2.45861995,3455.0,3454.1,3.2078]
[1735826617605,2.45861995,3455.4,3454.7,3.2078]
[1735826617806,3.2078,3455.5,3454.7,3.2078]
[1735826618009,0.28971,3455.3,3454.7,3.2078]
[1735826618209,0.28968,3455.7,3455.2,3.2078]
[1735826618510,8.05678046,3456.6,3455.6,3.2078]
[1735826618906,2.45861995,3456.6,3455.6,3.2078]
[1735826619105,3.34476857,3457.0,3456.2,5.66641995]
[1735826619306,3.34476857,3457.0,3456.8,3.2078]
[1735826619506,3.34476857,3457.0,3456.9,0.28958]
[1735826619706,3.34476857,3457.0,3456.8,3.2078]
[1735826619906,3.34476857,3457.0,3456.9,0.28958]
[1735826620420,9.93385855,3458.0,3456.9,0.28958]
[1735826620421,3.2078,3458.0,3456.9,0.4526]
[1735826620615,0.28955,3457.2,3456.9,0.4526]
[1735826620912,3.2078,3458.0,3456.9,0.4526]
[1735826621110,0.28957,3457.0,3456.9,0.4526]
[1735826621618,3.2078,3457.4,3456.8,3.2078]
[1735826621817,0.28958,3456.9,3456.8,3.2078]
[1735826622418,3.2078,3457.4,3456.8,3.2078]
[1735826622627,0.28958,3456.9,3456.8,3.2078]
[1735826624614,0.28957,3457.0,3456.6,0.2896]
[1735826624815,0.28957,3457.0,3456.7,0.28958]
[1735826625015,0.28957,3457.0,3456.7,3.2078]
[1735826625215,0.28957,3457.0,3456.7,3.49738]
[1735826625415,0.28957,3457.0,3456.8,0.28958]
[1735826625617,0.28958,3456.9,3456.7,3.2078]
[1735826626123,0.28954,3457.3,3456.7,3.2078]
[1735826626417,0.28958,3456.9,3456.7,3.49739]
[1735826626825,3.2078,3457.4,3456.7,3.49739]
[1735826627020,0.28957,3457.0,3456.7,3.2078]
[1735826627220,0.28958,3456.9,3456.7,3.2078]
[1735826627530,3.2078,3457.4,3456.3,3.2078]
[1735826627531,0.72386,3457.3,3456.3,3.2078]
[1735826627719,0.72392,3457.1,3456.3,3.49742]
[1735826627920,0.7239,3457.1,3455.9,3.2078]
[1735826628121,5.7239,3457.1,3455.9,3.2078]
[1735826628320,5.0,3457.1,3455.9,3.2078]
[1735826628524,0.28965,3456.0,3455.9,3.2078]
[1735826629123,0.28965,3456.0,3455.2,3.2078]
[1735826629124,0.28971,3455.3,3455.2,3.2078]
[1735826629429,0.2897,3455.4,3455.2,3.49751]
[1735826629619,1.02274044,3456.2,3455.2,3.2078]
[1735826629821,0.42802964,3456.2,3455.6,3.2078]
[1735826630021,0.28968,3455.7,3455.6,3.2078]
[1735826630220,3.2078,3455.9,3455.1,0.4184]
[1735826630532,0.28971,3455.3,3454.7,0.28976]
[1735826630724,0.28971,3455.3,3454.5,4.5018]
[1735826630725,0.28976,3454.8,3454.6,0.28976]
[1735826630922,1.02266299,3455.4,3454.5,4.5018]
[1735826631123,0.28977,3454.7,3454.5,4.79157]
[1735826631430,0.72428,3455.3,3454.5,3.2078]
[1735826631619,0.28977,3454.6,3454.5,3.49757]
[1735826631820,0.28977,3454.6,3454.5,3.2078]
[1735826632033,0.28976,3454.7,3454.5,3.49757]
[1735826632226,1.02266299,3455.4,3454.5,3.2078]
[1735826632426,0.72428,3455.3,3454.5,3.49757]
[1735826632629,0.28977,3454.6,3454.5,3.2078]
[1735826633425,0.72428,3455.3,3454.4,0.4475]
[1735826633426,0.28978,3454.5,3454.4,0.4475]
[1735826634525,1.74700299,3455.0,3454.1,3.2078]
[1735826634526,1.02266299,3455.0,3454.1,3.2078]
[1735826634730,0.2898,3454.2,3454.1,3.2078]
[1735826634932,0.2898,3454.3,3454.1,3.2078]
[1735826635233,0.2898,3454.2,3454.1,3.2078]
[1735826635640,3.2078,3454.6,3453.7,0.4511]
[1735826635841,0.28984,3453.8,3453.7,0.4511]
[1735826636139,0.28984,3453.7,3453.6,3.2078]
[1735826636331,0.28987,3453.4,3453.3,0.01063]
[1735826638530,3.2078,3453.8,3453.3,0.01063]
[1735826638738,0.72447,3454.4,3453.4,3.2078]
[1735826638939,0.28986,3453.5,3453.4,3.2078]
[1735826639338,0.28987,3453.4,3453.3,0.01063]
[1735826640942,5.28987,3453.4,3453.3,0.01063]
[1735826641246,0.28994,3452.5,3452.4,0.4591]
[1735826641442,3.2078,3453.2,3452.4,0.4591]
[1735826641648,1.02170219,3453.1,3452.4,0.4591]
[1735826641948,0.28994,3452.5,3452.4,0.4591]
[1735826642845,1.0208241,3453.1,3452.5,0.28994]
[1735826643042,0.28992,3452.8,3452.7,3.2078]
[1735826643238,1.02079229,3453.4,3452.7,3.2078]
[1735826643439,0.28987,3453.4,3453.2,0.28989]
[1735826643647,3.2078,3454.8,3453.3,3.2078]
[1735826643844,1.01091002,3454.7,3454.0,3.2078]
[1735826644346,0.28983,3453.9,3453.8,1.295]
[1735826644542,0.28984,3453.7,3453.6,3.2078]
[1735826644739,0.28986,3453.5,3453.4,0.456]
[1735826645540,0.28989,3453.2,3453.1,0.00279357]
[1735826645852,0.28989,3453.2,3453.1,0.29268357]
[1735826646147,0.28989,3453.2,3453.1,0.00279357]
[1735826646849,3.49769,3453.2,3453.1,0.00279357]
[1735826647942,0.72491,3452.4,3451.5,0.91905427]
[1735826648142,2.75713609,3451.6,3451.5,0.91905427]
[1735826648345,2.80371481,3451.6,3450.2,3.2078]
[1735826648646,0.41729394,3451.6,3451.3,3.2078]
[1735826648844,0.2901,3450.7,3450.4,3.2078]
[1735826649048,0.29008,3451.0,3450.5,1.58511]
[1735826649443,0.29007,3451.0,3450.6,1.295]
[1735826649650,3.2078,3451.3,3450.5,3.2078]
[1735826652045,3.63568897,3452.6,3451.7,3.2078]
[1735826652343,3.34476857,3453.1,3452.4,3.2078]
[1735826652547,3.34476857,3453.1,3452.8,3.2078]
[1735826652841,3.34476857,3453.1,3452.9,1.339]
[1735826653043,3.34476857,3453.1,3452.9,1.62891]
[1735826653345,0.28991,3453.0,3452.8,3.2078]
[1735826653545,3.2078,3453.9,3452.8,3.2078]
[1735826653546,8.2078,3453.9,3452.8,3.2078]
[1735826653742,0.72474,3453.1,3452.0,11.7928]
[1735826653943,0.72483,3452.7,3451.6,0.43]
[1735826654145,3.2078,3452.4,3451.6,0.43]
[1735826654545,0.29001,3451.7,3451.6,0.43]
[1735826654850,2.80371481,3451.9,3450.9,1.339]
[1735826655048,3.2078,3451.6,3450.6,3.2078]
[1735826655249,0.2901,3450.7,3450.6,3.2078]
[1735826655647,0.29009,3450.8,3450.6,3.2078]
[1735826655955,0.2901,3450.7,3450.6,3.2078]
[1735826656251,0.29008,3450.9,3450.6,3.4979]
[1735826656451,3.2078,3451.6,3450.6,3.2078]
[1735826656754,0.29003,3451.6,3451.2,3.2078]
[1735826656963,0.29002,3451.7,3451.4,0.29003]
[1735826657254,3.52861481,3452.4,3451.6,0.29001]
[1735826657255,2.80371481,3452.4,3451.6,0.29001]
[1735826657444,3.52861481,3452.4,3451.3,0.8473]
[1735826657640,3.2078,3452.2,3451.3,1.13734]
[1735826657854,0.29002,3451.6,3451.3,1.13734]
[1735826658156,3.2078,3452.2,3451.3,0.8473]
[1735826658448,0.29004,3451.4,3451.3,0.8473]
[1735826660158,0.72502,3451.8,3451.2,3.2078]
[1735826660361,0.29005,3451.3,3451.2,3.2078]
[1735826662250,0.29009,3450.8,3450.7,1.34]
[1735826662451,1.01061435,3451.6,3450.6,3.6399]
[1735826662656,0.29007,3451.1,3451.0,3.2078]
[1735826663052,1.73564435,3451.8,3450.6,3.6399]
[1735826663053,0.2901,3450.7,3450.6,3.6399]
[1735826663446,0.2901,3450.7,3450.6,3.2078]
[1735826664045,0.2901,3450.7,3450.3,0.4543]
[1735826664046,6.01151481,3450.9,3450.3,0.4543]
[1735826664259,3.2078,3450.5,3449.7,3.2078]
[1735826664453,2.80371481,3450.9,3449.3,3.2078]
[1735826664454,3.2078,3450.1,3449.3,3.2078]
[1735826664654,3.2078,3449.7,3446.8,11.52461226]
[1735826664847,0.29036,3447.6,3447.4,3.2078]
[1735826665054,1.01280602,3449.1,3447.5,44.4495]
[1735826665255,0.41883995,3449.1,3448.2,3.2078]
[1735826665555,0.29029,3448.4,3447.8,3.49813]
[1735826665754,3.2078,3448.7,3447.8,3.2078]
[1735826666156,3.2078,3448.7,3447.9,3.2078]
[1735826666357,0.29036,3447.6,3447.5,44.4495]
[1735826666547,0.29035,3447.7,3447.5,44.4495]
[1735826666752,3.2078,3448.3,3447.5,44.4495]
[1735826666954,3.2078,3448.7,3447.9,3.2078]
[1735826667157,3.2078,3448.7,3448.0,1.34]
[1735826667459,0.29029,3448.5,3448.1,1.34]
[1735826667762,3.2078,3448.7,3448.1,1.34]
[1735826667951,3.49807,3448.7,3448.1,1.34]
[1735826668155,3.2078,3449.1,3448.3,3.2078]
[1735826668353,0.72534,3450.3,3449.0,3.2078]
[1735826668654,0.2902,3449.5,3449.4,3.2078]
[1735826669455,0.29023,3449.1,3449.0,3.2078]
[1735826669854,0.29028,3448.6,3448.5,3.2078]
[1735826670158,0.29031,3448.2,3448.1,3.2078]
[1735826670954,0.29034,3447.8,3447.7,3.2078]
[1735826671161,0.29037,3447.4,3447.3,3.2078]
[1735826671561,3.2078,3448.1,3446.8,4.6018]
[1735826671862,0.29041,3447.0,3446.9,3.2078]
[1735826673066,4.37642,3448.0,3446.9,3.2078]
[1735826673359,0.29036,3447.5,3447.3,3.2078]
[1735826673659,0.29037,3447.4,3447.3,3.2078]
[1735826673963,0.72584,3447.9,3446.9,3.2078]
[1735826673964,0.29041,3447.0,3446.9,3.2078]
[1735826674265,0.29044,3446.6,3446.5,3.2078]
[1735826675457,5.0,3446.6,3446.1,3.2078]
[1735826675765,2.80371481,3446.2,3445.2,0.91905427]
[1735826675964,0.29055,3445.3,3445.2,0.91905427]
[1735826676467,5.29055,3445.3,3445.2,0.23071427]
[1735826676659,0.29055,3445.3,3445.2,0.23071427]
[1735826678857,0.8856,3446.5,3445.2,0.23071427]
[1735826679064,0.29052,3445.7,3445.6,3.2078]
[1735826679262,0.29051,3445.8,3445.6,3.2078]
[1735826679567,0.72615,3446.4,3445.6,3.2078]
[1735826679866,0.29052,3445.7,3445.6,3.2078]
[1735826680661,0.29052,3445.7,3445.2,0.23071427]
[1735826680662,8.09423481,3445.7,3445.2,0.23071427]
[1735826680964,0.29055,3445.3,3445.2,0.23071427]
[1735826681373,5.29055,3445.3,3445.2,0.23071427]
[1735826681563,0.29055,3445.3,3445.2,0.23071427]
[1735826681963,6.395,3445.3,3444.2,3.2078]
[1735826682162,0.29063,3444.3,3444.2,3.2078]
[1735826682665,0.29076,3442.9,3442.3,3.2078]
[1735826682964,13.80896568,3444.3,3442.3,3.2078]
[1735826682965,0.29079,3442.5,3442.3,3.2078]
[1735826683168,2.80371481,3443.5,3442.3,3.2078]
[1735826683362,3.2078,3444.4,3443.2,3.2078]
[1735826683363,2.80371481,3444.1,3443.2,3.2078]
[1735826683565,0.29069,3443.7,3443.6,3.2078]
[1735826683764,0.29071,3443.4,3443.2,3.2078]
[1735826683967,2.80371481,3444.1,3443.2,3.2078]
[1735826684174,0.29069,3443.7,3443.6,3.2078]
[1735826686073,2.80371481,3444.1,3443.6,3.2078]
[1735826686271,3.2078,3444.4,3443.6,3.2078]
[1735826686568,0.29066,3443.7,3443.6,3.2078]
[1735826688768,3.2078,3444.0,3443.2,3.2078]
[1735826688972,0.72661,3443.9,3442.8,3.2078]
[1735826689172,0.29072,3442.9,3442.8,3.2078]
[1735826689374,0.29075,3442.6,3442.5,0.4659]
[1735826689576,0.7268,3443.0,3442.4,3.2078]
[1735826689769,2.80371481,3443.1,3442.4,3.2078]
[1735826689770,0.29076,3442.5,3442.4,3.2078]
[1735826690672,0.72682,3442.9,3442.0,3.2078]
[1735826690978,0.29078,3442.2,3442.0,3.646]
[1735826691171,0.29079,3442.1,3442.0,4.0743]
[1735826692066,2.80371481,3442.6,3442.0,4.0743]
[1735826692274,3.2078,3443.1,3442.0,4.0743]
[1735826692275,0.29078,3442.3,3442.0,4.0743]
[1735826692570,0.7267,3443.5,3442.0,4.0743]
[1735826692777,0.29071,3443.1,3443.0,3.2078]
[1735826693280,2.80371481,3443.7,3443.0,3.2078]
[1735826693466,3.93438,3444.1,3443.4,3.2078]
[1735826693667,2.80371481,3444.2,3443.8,3.2078]
[1735826693872,0.29062,3444.2,3443.9,0.29063]
[1735826694066,0.72639,3445.0,3443.9,0.29063]
[1735826694067,3.53004481,3445.2,3443.9,0.4269]
[1735826694271,3.2078,3445.5,3444.5,3.2078]
[1735826694571,0.72623,3445.7,3445.0,3.2078]
[1735826694780,0.29053,3445.3,3445.0,3.49834]
[1735826694970,3.52983481,3446.2,3445.0,3.2078]
[1735826695170,0.2905,3445.7,3445.4,3.2078]
[1735826695371,3.52975481,3446.7,3445.4,3.2078]
[1735826695570,0.29048,3445.9,3445.8,3.2078]
[1735826695777,0.29046,3446.1,3445.8,3.2078]
[1735826695976,0.29047,3445.9,3445.8,3.2078]
[1735826696176,3.93378,3446.9,3445.8,3.2078]
[1735826696578,0.29044,3446.3,3446.2,3.2078]
[1735826696875,0.29047,3445.9,3445.8,3.2078]
[1735826697679,3.2078,3446.0,3445.2,3.2078]
[1735826697988,0.29052,3445.3,3445.2,3.2078]
[1735826698282,0.72613,3446.2,3445.2,3.2078]
[1735826698474,3.2078,3446.4,3445.2,3.2078]
[1735826698475,0.41578035,3446.3,3445.6,3.2078]
[1735826698876,1.00591761,3446.6,3445.6,3.2078]
[1735826699081,0.29049,3445.7,3445.6,3.2078]
[1735826699472,0.2905,3445.6,3445.5,3.2078]
[1735826699678,0.7261,3446.3,3445.5,3.2078]
[1735826699881,1.73196761,3446.6,3445.5,3.2078]
[1735826699882,1.00591761,3446.6,3445.5,3.2078]
[1735826700175,0.2905,3445.6,3445.5,3.2078]
[1735826700371,3.2078,3446.0,3444.9,0.8996]
[1735826700576,0.29055,3445.0,3444.9,0.8996]
[1735826700883,0.72627,3445.5,3444.9,0.8996]
[1735826700884,0.29054,3445.1,3444.9,0.8996]
[1735826701085,0.72618,3446.0,3444.9,0.8996]
[1735826701280,0.29055,3445.0,3444.9,0.8996]
[1735826701579,0.29054,3445.2,3444.9,1.19015]
[1735826701785,0.29052,3445.4,3445.1,3.2078]
[1735826701980,0.72616,3446.0,3445.1,3.2078]
[1735826702277,0.99080242,3446.1,3445.1,3.2078]
[1735826702474,0.29053,3445.2,3445.1,3.2078]
[1735826702674,0.29055,3445.1,3444.9,0.8996]
[1735826703077,0.29054,3445.1,3444.9,0.8996]
[1735826703277,0.99080242,3446.1,3444.9,0.8996]
[1735826703475,0.29051,3445.5,3445.2,0.29053]
[1735826703673,0.99080242,3446.1,3445.1,3.2078]
[1735826703978,0.99080242,3446.6,3446.0,3.2078]
[1735826704179,0.29043,3446.4,3446.1,0.73775]
[1735826704478,0.72585,3447.5,3446.1,0.73775]
[1735826704479,0.72592,3447.2,3446.1,1.3213]
[1735826704681,0.72593,3447.1,3446.1,1.3213]
[1735826704881,0.29045,3446.2,3446.1,1.3213]
[1735826705486,1.69300889,3446.8,3446.1,1.61175]
[1735826705487,0.96698086,3446.8,3446.1,1.61175]
[1735826705784,0.29045,3446.5,3446.2,0.29047]
[1735826705976,0.96685859,3447.1,3446.1,6.3213]
[1735826705977,0.29044,3446.7,3446.3,0.29046]
[1735826706176,0.29052,3445.7,3445.6,3.2078]
[1735826706484,1.69303107,3446.3,3445.3,0.439]
[1735826706778,3.2078,3446.2,3445.3,3.6468]
[1735826706986,3.93399,3446.2,3445.3,3.6468]
[1735826707179,0.29052,3445.7,3445.4,0.29054]
[1735826707384,6.01151481,3446.6,3445.5,0.29053]
[1735826707385,0.2905,3445.9,3445.5,0.29053]
[1735826707580,0.2905,3445.9,3445.6,0.29052]
[1735826707786,0.29047,3446.3,3445.7,3.2078]
[1735826707980,3.2078,3446.6,3445.7,3.2078]
[1735826708384,0.2905,3446.0,3445.7,3.2078]
[1735826708583,0.29049,3446.1,3445.8,0.2905]
[1735826708780,0.29049,3446.1,3445.7,8.2078]
[1735826708980,0.29047,3446.3,3445.7,8.2078]
[1735826709185,6.01151481,3447.1,3445.7,8.2078]
[1735826709381,0.9665137,3447.0,3445.7,8.2078]
[1735826709581,0.29051,3445.8,3445.7,8.2078]
[1735826709892,3.2078,3446.5,3445.3,3.6468]
[1735826710187,0.29046,3446.4,3446.1,0.29048]
[1735826710383,1.01643,3447.0,3446.2,0.75567]
[1735826710683,0.29042,3446.9,3446.4,0.29045]
[1735826710892,0.72603,3447.0,3446.2,5.931]
[1735826711192,0.29046,3446.4,3446.2,0.931]
[1735826711583,0.29045,3446.5,3446.2,5.931]
[1735826711789,0.29045,3446.5,3446.3,0.29046]
[1735826711990,0.29045,3446.5,3446.4,0.4346]
[1735826712289,0.29047,3446.3,3446.2,0.931]
[1735826713688,0.96548089,3447.0,3446.2,0.931]
[1735826714202,0.29045,3446.5,3446.3,0.29046]
[1735826714489,0.96548089,3447.0,3446.2,0.931]
[1735826714689,0.29046,3446.4,3446.2,1.22147]
[1735826714880,0.96548089,3447.0,3446.4,0.29045]
[1735826715088,0.29045,3446.5,3446.4,0.29045]
[1735826715284,0.29045,3446.6,3446.4,0.29045]
[1735826715483,0.96548089,3447.0,3446.2,0.931]
[1735826715685,0.96545877,3447.0,3446.2,5.931]
[1735826715990,2.20792733,3447.3,3446.5,3.2078]
[1735826716184,0.29039,3447.2,3446.9,3.2078]
[1735826716386,2.20792733,3447.3,3446.7,0.29043]
[1735826716687,0.29044,3446.6,3446.2,0.931]
[1735826716890,0.29044,3446.6,3444.7,2.80371481]
[1735826716891,2.80371481,3446.6,3445.7,3.2078]
[1735826717186,0.29053,3445.5,3445.1,3.2078]
[1735826717387,0.29055,3445.4,3445.2,1.74155]
[1735826717694,0.29054,3445.5,3445.3,0.29054]
[1735826717892,0.29051,3445.9,3445.2,6.451]
[1735826718188,3.2078,3446.3,3445.7,3.2078]
[1735826718390,3.2078,3446.3,3445.8,0.9276]
[1735826718586,0.29049,3446.1,3445.9,0.7317]
[1735826718786,2.52387788,3446.3,3445.9,0.4412]
[1735826719091,2.23340788,3446.3,3446.2,0.29047]
[1735826719301,3.35011182,3446.4,3446.2,5.0]
[1735826719482,2.64921182,3446.4,3446.3,0.29047]
[1735826719688,4.46681577,3446.6,3446.5,0.29045]
[1735826719887,4.46681577,3446.6,3446.5,3.49825]
[1735826720084,8.93363154,3447.6,3446.5,3.49825]
[1735826720085,3.06371577,3447.7,3446.5,49.0078]
[1735826720384,0.29041,3447.0,3446.9,3.2078]
[1735826720687,0.29041,3447.0,3446.9,4.6588]
[1735826720887,0.29041,3447.0,3446.9,3.2078]
[1735826721087,0.40001876,3447.6,3446.9,3.2078]
[1735826721490,0.72592,3447.5,3446.9,3.2078]
[1735826721794,0.29041,3447.0,3446.9,3.49822]
[1735826721995,0.2904,3447.1,3446.9,3.49821]
[1735826722288,0.9683388,3447.7,3447.1,0.29039]
[1735826722491,0.29039,3447.2,3447.0,0.2904]
[1735826722694,0.9683388,3447.7,3446.9,3.2078]
[1735826722695,0.29041,3447.0,3446.9,3.2078]
[1735826722892,3.2078,3447.4,3446.9,3.2078]
[1735826723090,0.29036,3447.6,3447.4,0.29037]
[1735826723287,0.4014959,3447.7,3447.6,0.29036]
[1735826723482,0.29036,3447.6,3447.4,0.29037]
[1735826723688,0.97179709,3447.7,3447.6,0.29036]
[1735826723890,3.52941481,3448.6,3447.6,0.29036]
[1735826723891,3.2078,3448.6,3447.6,0.29036]
[1735826724092,0.97246289,3448.3,3447.7,3.2078]
[1735826724289,0.4523,3448.4,3448.2,0.2903]
[1735826724290,0.29029,3448.4,3448.2,0.2903]
[1735826724494,0.97246289,3448.5,3448.1,3.2078]
[1735826724686,0.97246289,3448.5,3448.1,8.2078]
[1735826724891,0.40210833,3448.5,3448.4,0.29029]
[1735826725089,0.40210833,3448.5,3448.4,1.74029]
[1735826725290,0.40210833,3448.9,3448.8,0.29026]
[1735826725489,5.58351971,3449.7,3448.7,3.2078]
[1735826725693,0.97221868,3449.6,3448.7,3.2078]
[1735826725893,0.4019944,3449.6,3449.1,3.2078]
[1735826726196,5.58351971,3449.7,3449.6,0.29019]
[1735826726388,5.58351971,3449.7,3449.6,5.29019]
[1735826726893,1.0,3450.0,3449.6,5.0]
[1735826727198,1.0,3450.0,3449.9,3.49796]
[1735826727394,3.49787,3451.0,3450.6,0.2901]
[1735826727598,3.2078,3451.0,3450.6,1.7381]
[1735826727793,3.2078,3451.0,3450.9,0.29008]
[1735826727997,3.2078,3451.0,3450.9,1.448]
[1735826728394,0.29006,3451.1,3450.9,1.448]
[1735826728804,0.29006,3451.2,3450.9,1.448]
[1735826729001,0.29007,3451.0,3450.9,1.448]
[1735826729202,3.2078,3451.5,3450.9,1.448]
[1735826729699,3.2078,3451.5,3450.9,6.448]
[1735826729999,0.29007,3451.0,3450.9,1.448]
[1735826730194,3.2078,3451.1,3450.3,3.2078]
[1735826730396,0.29012,3450.4,3450.3,3.2078]
[1735826731097,0.29016,3450.0,3449.7,3.2078]
[1735826731299,3.2078,3450.1,3449.3,3.2078]
[1735826731495,0.2902,3449.5,3449.3,3.2078]
[1735826731798,0.29015,3450.0,3449.1,4.6548]
[1735826732003,3.2078,3450.1,3449.1,6.447]
[1735826732299,3.2078,3450.1,3449.3,3.2078]
[1735826732300,0.29019,3449.6,3449.3,3.2078]
[1735826732496,3.2078,3450.1,3449.3,3.2078]
[1735826732497,0.29018,3449.8,3449.3,3.49801]
[1735826732698,6.01151481,3450.6,3449.3,3.2078]
[1735826732904,0.29017,3449.8,3449.3,3.2078]
[1735826733200,0.29017,3449.8,3449.3,3.49801]
[1735826733396,0.2902,3449.4,3449.3,3.2078]
[1735826733595,0.2902,3449.4,3449.3,4.6548]
[1735826733792,0.2902,3449.4,3449.3,3.2078]
[1735826735200,0.4457,3449.7,3448.7,0.29026]
[1735826735397,0.4457,3449.7,3448.6,3.2078]
[1735826735799,0.29021,3449.3,3448.7,0.29026]
[1735826736102,3.2078,3449.4,3448.6,3.2078]
[1735826736297,0.29024,3449.0,3448.6,4.94507]
[1735826736602,0.29023,3449.2,3448.8,0.29025]
[1735826736802,0.29023,3449.2,3448.6,4.6548]
[1735826736803,0.4457,3449.7,3449.0,3.2078]
[1735826737501,0.29023,3449.1,3449.0,3.2078]
[1735826737698,0.29027,3448.6,3448.5,3.2078]
[1735826738100,0.2903,3448.3,3448.1,1.447]
[1735826738406,0.29029,3448.5,3448.2,0.2903]
[1735826738608,0.29027,3448.6,3448.1,1.73731]
[1735826738795,0.29028,3448.6,3448.2,0.2903]
[1735826738996,3.2078,3448.7,3448.1,1.73731]
[1735826738997,0.29029,3448.4,3448.1,1.73731]
[1735826739197,0.2903,3448.3,3448.0,0.29032]
[1735826739802,0.29031,3448.2,3447.9,12.68285]
[1735826740195,0.29032,3448.0,3447.9,12.39252]
[1735826740396,3.2078,3448.7,3447.9,12.39252]
[1735826740397,3.2078,3448.7,3447.9,5.13852]
[1735826740601,3.2078,3448.7,3448.0,0.29032]
[1735826740802,3.2078,3448.7,3448.4,0.29028]
[1735826741004,3.2078,3448.7,3447.9,10.13852]
[1735826741207,0.8937,3448.8,3448.3,3.2078]
[1735826741508,3.2078,3449.1,3448.3,3.2078]
[1735826741908,3.2078,3449.1,3448.6,0.29027]
[1735826741909,0.29025,3448.9,3448.6,0.29027]
[1735826742103,0.29023,3449.1,3448.3,8.2078]
[1735826742308,4.1015,3449.6,3448.3,8.2078]
[1735826742609,0.29024,3449.0,3448.7,0.29026]
[1735826742810,0.29023,3449.1,3448.7,1.447]
[1735826743010,0.29025,3448.9,3448.7,1.73726]
[1735826743212,3.2078,3449.2,3448.3,3.2078]
[1735826743505,0.29032,3448.0,3447.9,0.48372]
[1735826744604,3.2078,3448.1,3447.1,1.447]
[1735826744804,0.72583,3448.0,3447.1,1.447]
[1735826745006,0.29041,3447.0,3446.9,1.447]
[1735826745208,3.2078,3447.2,3446.2,3.2078]
[1735826745405,3.2078,3446.8,3446.3,0.29046]
[1735826745600,3.2078,3446.8,3446.0,0.0028543]
[1735826745601,0.72609,3446.7,3446.0,0.0028543]
[1735826745906,3.2078,3446.8,3446.0,0.0028543]
[1735826746209,0.4704,3446.9,3446.1,3.2078]
[1735826746405,0.29044,3446.7,3446.3,0.29046]
[1735826746802,0.29042,3446.8,3446.4,0.29045]
[1735826747002,0.4704,3446.9,3446.2,1.447]
[1735826747310,0.29045,3446.6,3446.3,0.29046]
[1735826747514,0.4704,3446.9,3446.2,1.447]
[1735826747709,0.4704,3446.9,3446.2,1.73747]
[1735826747909,0.4704,3446.9,3446.2,1.447]
[1735826748106,0.4704,3446.9,3446.0,0.0028543]
[1735826748406,0.29046,3446.4,3446.1,0.29048]
[1735826748611,0.72607,3446.8,3446.0,0.0028543]
[1735826748802,3.2078,3446.6,3446.0,0.0028543]
[1735826749009,0.29048,3446.1,3446.0,0.0028543]
[1735826751210,3.49828,3446.1,3446.0,0.0028543]
[1735826752617,3.2078,3446.1,3446.0,0.0028543]
[1735826752810,0.4704,3446.9,3446.0,0.0028543]
[1735826752811,3.49826,3446.5,3446.1,0.29048]
[1735826753006,3.2078,3446.5,3446.0,0.0028543]
[1735826753306,0.4704,3446.9,3446.3,3.2078]